fUSD/lending_fUSD_20241010
["ID","MTS","AMOUNT","RATE_DAILY","PERIOD"]
[340098553,1728523838880,-1475.3221,0.000109,2]
[340098554,1728523838890,-1605.4499,0.000109,2]
[340098555,1728523838899,-1221.3552,0.000109,2]
[340098556,1728523838909,-176.43212467,0.000109,2]
[340098557,1728523838918,-7500.0,0.000109,2]
[340098558,1728523838927,-628.99021115,0.000109,2]
[340098559,1728523838937,-628.99021115,0.000109,2]
[340098560,1728523838946,-1612.0,0.000109,2]
[340098561,1728523838955,-175.19255356,0.000109,2]
[340098562,1728523838964,-159.6915019,0.000109,2]
[340098563,1728523838973,-181.07,0.00010959,2]
[340098564,1728523838982,-152.97,0.00010959,2]
[340098565,1728523838992,-150.0,0.00010959,2]
[340098566,1728523839001,-250.0,0.00010959,2]
[340098567,1728523839010,-624.16,0.00010959,2]
[340098568,1728523839019,-177.39,0.00010959,2]
[340098569,1728523839028,-66479.57114132,0.00010959,2]
[340098570,1728523839039,-6249.29885868,0.00010959,2]
[340098571,1728523839048,-502.42579227,0.00010973,2]
[340098572,1728523839057,-383.79243346,0.00010973,2]
[340098573,1728523839068,-216.29272867,0.00010973,2]
[340098574,1728523839077,-201.19470481,0.00010973,2]
[340098575,1728523839086,-502.11110688,0.00010973,2]
[340098576,1728523839095,-348.27770354,0.0001099,2]
[340098577,1728523839104,-348.27770354,0.0001099,2]
[340098578,1728523839113,-187.83479856,0.0001099,2]
[340098579,1728523840291,-160.44290498,0.0001099,2]
[340098580,1728523840300,-435.98209501,0.00010997,2]
[340098581,1728523840311,-561.22489336,0.00010997,2]
[340098582,1728523840322,-6615.06376153,0.00010997,2]
[340098583,1728523840331,-200.68480626,0.00010999,2]
[340098584,1728523840340,-205.74102221,0.00010999,2]
[340098585,1728523840349,-500.0,0.00010999,2]
[340098586,1728523840358,-500.0,0.00010999,2]
[340098587,1728523840367,-545.28014814,0.00010999,2]
[340098588,1728523840376,-649.0,0.00011,2]
[340098589,1728523840385,-319504.22201126,0.00011,2]
[340098598,1728524064745,200.0,9.899e-05,2]
[340098599,1728524255037,335.91,8.709e-05,2]
[340098600,1728524413082,236.78,0.00010124,2]
[340098601,1728524413306,236.78,0.00010127,2]
[340098602,1728524413548,236.78,0.0001013,2]
[340098603,1728524413965,236.78,0.00010132,2]
[340098604,1728524414177,236.78,0.00010135,2]
[340098605,1728524414424,236.78,0.00010138,2]
[340098606,1728524415415,236.78,0.0001014,2]
[340098607,1728524415713,236.78,0.00010143,2]
[340098608,1728524415962,236.78,0.00010146,2]
[340098609,1728524416176,236.78,0.00010148,2]
[340098610,1728524416389,236.78,0.00010151,2]
[340098611,1728524416618,236.78,0.00010154,2]
[340098612,1728524416828,236.78,0.00010156,2]
[340098613,1728524417066,236.78,0.00010159,2]
[340098614,1728524417328,236.78,0.00010162,2]
[340098615,1728524417546,236.78,0.00010164,2]
[340098616,1728524417743,236.78,0.00010167,2]
[340098617,1728524417958,236.78,0.0001017,2]
[340098618,1728524418163,236.78,0.00010172,2]
[340098619,1728524418535,236.78,0.00010175,2]
[340098620,1728524431887,9943.98,0.00010167,2]
[340098621,1728524476845,200.0,0.00010158,2]
[340098622,1728524544943,250.0,0.00010147,2]
[340098623,1728524762773,349.44,8.219e-05,2]
[340098624,1728524824072,23900.0,0.00010093,2]
[340098625,1728524834161,-250.0,0.0001024,2]
[340098626,1728524834181,-738.06,0.00010274,2]
[340098627,1728524834203,-158.08,0.00010312,2]
[340098628,1728524834223,-1081.07,0.00010337,2]
[340098629,1728524834244,-203.28,0.00010378,2]
[340098630,1728524834266,-792.93903488,0.00010378,2]
[340098631,1728524834290,-840.0,0.00010425,2]
[340098632,1728524834309,-349.44,0.0001048,2]
[340098633,1728524834330,-759.7,0.00010632,2]
[340098634,1728524834354,-150.0,0.00010698,2]
[340098635,1728524834378,-472.38,0.00010698,2]
[340098636,1728524834400,-570.19041281,0.00010699,2]
[340098651,1728525032339,-2940.35462768,0.00010699,2]
[340098654,1728525038472,-1508.57123451,0.00010699,2]
[340098655,1728525038609,-11313.24343117,0.00010699,2]
[340098656,1728525038620,-995.06029383,0.00010699,2]
[340098657,1728525038630,-284.70284877,0.00010699,2]
[340098658,1728525038750,-3558.56205123,0.00010699,2]
[340098659,1728525038759,-214.7394,0.000107,2]
[340098660,1728525038769,-376.315,0.00010799,2]
[340098661,1728525038779,-413.9447,0.000108,2]
[340098662,1728525038788,-4427.41704431,0.000108,2]
[340098663,1728525038801,-5510.06098439,0.000108,2]
[340098664,1728525038813,-51663.7293713,0.000108,2]
[340098665,1728525038822,-9370.1197087,0.000108,2]
[340098666,1728525038834,-4943.44331548,0.000108,2]
[340098667,1728525038849,-599.2800009,0.000108,2]
[340098668,1728525040188,-29786.9114008,0.000108,2]
[340098669,1728525040349,-735.77506028,0.000108,2]
[340098670,1728525040362,-418.70499984,0.000108,2]
[340098671,1728525040373,-4500.795814,0.000108,2]
[340098672,1728525040382,-379.85,0.00010855,2]
[340098673,1728525040391,-558.99126175,0.00010899,2]
[340098674,1728525040399,-558.99126168,0.00010899,2]
[340098675,1728525040408,-79.12811491,0.00010899,2]
[340098689,1728525043438,-479.86314677,0.00010899,2]
[340098690,1728525043449,-558.99126168,0.00010899,2]
[340098691,1728525043458,-558.99126168,0.00010899,2]
[340098692,1728525043468,-558.99126168,0.00010899,2]
[340098693,1728525043480,-558.99126168,0.00010899,2]
[340098694,1728525043491,-558.99126168,0.00010899,2]
[340098695,1728525043501,-558.99126168,0.00010899,2]
[340098696,1728525043512,-251.1146,0.000109,2]
[340098697,1728525043523,-1007.0297,0.000109,2]
[340098698,1728525043534,-178.63903675,0.000109,2]
[340098699,1728525043545,-558.99126168,0.000109,2]
[340098700,1728525043555,-165.22468473,0.000109,2]
[340098701,1728525043626,-7334.77531527,0.000109,2]
[340098702,1728525043636,-472.98036379,0.000109,2]
[340098703,1728525043645,-152.64,0.00010959,2]
[340098704,1728525043655,-250.0,0.00010959,2]
[340098705,1728525043664,-150.0,0.00010959,2]
[340098706,1728525043674,-177.31,0.00010959,2]
[340098707,1728525043683,-160.06,0.00010959,2]
[340098708,1728525043693,-150.99,0.00010959,2]
[340098709,1728525043702,-2227.45,0.00010959,2]
[340098710,1728525043711,-236.99,0.00010959,2]
[340098711,1728525043720,-197.49,0.00010959,2]
[340098712,1728525043729,-500.0,0.00010999,2]
[340098713,1728525043739,-500.0,0.00010999,2]
[340098714,1728525043749,-311.25925876,0.00010999,2]
[340098715,1728525043758,-500.0,0.00010999,2]
[340098716,1728525043768,-333.35287457,0.00010999,2]
[340098717,1728525043778,-500.0,0.00010999,2]
[340098718,1728525043787,-500.0,0.00010999,2]
[340098719,1728525043797,-468.47045246,0.00010999,2]
[340098720,1728525043807,-596.0,0.00011,2]
[340098721,1728525043818,-93944.12763123,0.00011,2]
[340098722,1728525043830,-1829.909999,0.00011,2]
[340098742,1728525046253,-2632.2872,0.00011,2]
[340098745,1728525046265,-1356.11991257,0.00011,2]
[340098747,1728525046276,-7614.48000001,0.00011,2]
[340098753,1728525046480,-164.58,0.00010959,2]
[340098754,1728525046491,-34158.2034206,0.00011,2]
[340098755,1728525304857,346.77,8.912e-05,2]
[340098756,1728525795104,1045.0,0.000125,5]
[340098757,1728525818515,360.09,8.528e-05,2]
[340098758,1728526026131,-1137.69124,0.00010279,2]
[340098759,1728526026151,-189.92,0.00010331,2]
[340098760,1728526026172,-1717.80173008,0.00010339,2]
[340098761,1728526232350,-300.0,0.00010338,2]
[340098762,1728526232360,-686.37026485,0.00010339,2]
[340098763,1728526232371,-7364.30568255,0.00010339,2]
[340098765,1728526232382,-3281.11815459,0.00010339,2]
[340098780,1728526232549,-2129.3218492,0.00010339,2]
[340098781,1728526232561,-277.62159607,0.00010339,2]
[340098782,1728526232573,-341.16724292,0.00010339,2]
[340098783,1728526232584,-2427.11310197,0.00010339,2]
[340098784,1728526232595,-803.79115244,0.00010339,2]
[340098785,1728526232737,-581.37840393,0.00010339,2]
[340098791,1728526238869,-4290.0108214,0.00010339,2]
[340098792,1728526238878,-158.08,0.00010381,2]
[340098793,1728526238887,-250.0,0.0001047,2]
[340098794,1728526238896,-672.0,0.00010502,2]
[340098795,1728526238905,-328.0,0.0001054,2]
[340098796,1728526238914,-150.0,0.00010752,2]
[340098797,1728526238923,-360.09,0.00010792,2]
[340098798,1728526238932,-1743.9552,0.000108,2]
[340098799,1728526238941,-301.052,0.00010899,2]
[340098800,1728526238950,-499.99,0.00010899,2]
[340098801,1728526238959,-155.56213408,0.000109,2]
[340098802,1728526238968,-462.4575,0.000109,2]
[340098803,1728526238977,-10166.7242,0.000109,2]
[340098804,1728526238986,-2283.5841,0.000109,2]
[340098805,1728526238995,-635.1184,0.000109,2]
[340098806,1728526239004,-174.09804233,0.000109,2]
[340098807,1728526239014,-1395.6498,0.000109,2]
[340098808,1728526239023,-247.8472,0.000109,2]
[340098809,1728526239032,-214.7394,0.000109,2]
[340098810,1728526239041,-5227.50646678,0.000109,2]
[340098811,1728526239050,-7500.0,0.000109,2]
[340098812,1728526239058,-413.77523376,0.000109,2]
[340098813,1728526239067,-361.94950267,0.000109,2]
[340098814,1728526239076,-188.12732371,0.000109,2]
[340098815,1728526239085,-393.05884889,0.000109,2]
[340098816,1728526239094,-622.78708966,0.000109,2]
[340098817,1728526239104,-151.062,0.00010934,2]
[340098818,1728526239113,-5880.0,0.00010934,2]
[340098819,1728526239124,-1149.0,0.00010934,2]
[340098820,1728526239133,-13521.0,0.00010934,2]
[340098821,1728526239143,-1083.0,0.00010934,2]
[340098822,1728526239153,-161.0,0.00010959,2]
[340098823,1728526239162,-172.53,0.00010959,2]
[340098824,1728526239171,-152.97,0.00010959,2]
[340098825,1728526239180,-172.53,0.00010959,2]
[340098826,1728526239189,-690.16,0.00010959,2]
[340098827,1728526239198,-160.85317256,0.00010973,2]
[340098828,1728526239207,-159.70936046,0.00010973,2]
[340098829,1728526239217,-200.94689937,0.00010973,2]
[340098830,1728526239226,-203.12034417,0.00010973,2]
[340098831,1728526239235,-345.24688479,0.00010973,2]
[340098832,1728526239245,-160.75027289,0.00010973,2]
[340098834,1728526239254,-504.1679954,0.00010973,2]
[340098836,1728526239263,-501.4135803,0.00010973,2]
[340098838,1728526239272,-500.0,0.00010973,2]
[340098840,1728526239285,-3654.80605088,0.00010998,2]
[340098841,1728526239294,-171.98660781,0.00010999,2]
[340098842,1728526239303,-500.0,0.00010999,2]
[340098843,1728526239312,-500.0,0.00010999,2]
[340098844,1728526239321,-492.88018089,0.00010999,2]
[340098845,1728526239330,-727.0,0.00011,2]
[340098846,1728526239339,-967.17606146,0.00011,2]
[340098847,1728526239351,-556.19482424,0.00011,2]
[340098848,1728526239363,-5795.5604537,0.00011,2]
[340098849,1728526240573,-242.09885101,0.00011,2]
[340098850,1728526240582,-86.23899465,0.00011,2]
[340098851,1728526240593,-702.36484713,0.00011,2]
[340098852,1728526240604,-62674.41192612,0.00011,2]
[340098853,1728526240614,-1929.49574743,0.00011,2]
[340098855,1728526240736,-2284.7263169,0.00011,2]
[340098981,1728526243770,-614.34389817,0.00011,2]
[340098982,1728526243784,-2942.86150215,0.00011,2]
[340098983,1728526243796,-364157.20507977,0.00011,2]
[340098984,1728526243809,-694.6552224,0.00011,2]
[340098985,1728526243820,-1329.2999999,0.00011,2]
[340098986,1728526246757,-654.0,0.00011,2]
[340098987,1728526246766,-7032.73270882,0.00011,2]
[340098988,1728526268995,613.0,0.000115,5]
[340098989,1728526340974,354.7,9.293e-05,2]
[340098991,1728526749689,-1000.0,0.00010239,2]
[340098992,1728526752386,-1000.0,0.00010239,2]
[340098993,1728526753461,-1000.0,0.00010239,2]
[340098994,1728526755023,-1000.0,0.00010239,2]
[340098995,1728526756192,-1000.0,0.00010239,2]
[340098996,1728526757233,-955.099,0.00010239,2]
[340098997,1728526757254,-44.901,0.00010497,2]
[340098998,1728526758279,-1000.0,0.00010497,2]
[340098999,1728526759260,-1000.0,0.00010497,2]
[340099000,1728526760181,-1000.0,0.00010497,2]
[340099001,1728526761175,-1000.0,0.00010497,2]
[340099002,1728526770124,-647.7449164,0.00010497,2]
[340099003,1728526770146,-352.2550836,0.00010709,2]
[340099004,1728526772654,-385.3449164,0.00010709,2]
[340099005,1728526772674,-189.92,0.00010811,2]
[340099006,1728526772695,-150.0,0.00010899,2]
[340099007,1728526772717,-240.841,0.00010899,2]
[340099008,1728526772739,-33.8940836,0.000109,2]
[340099009,1728526789686,-1000.0,0.000109,2]
[340099010,1728526790978,-1000.0,0.000109,2]
[340099011,1728526793049,-1000.0,0.000109,2]
[340099012,1728526839275,367.58,9.024e-05,2]
[340099013,1728526842811,-333.7827,0.00010598,2]
[340099014,1728526842832,-666.2173,0.000109,2]
[340099015,1728526843850,-1000.0,0.000109,2]
[340099016,1728526844825,-1000.0,0.000109,2]
[340099017,1728526845751,-1000.0,0.000109,2]
[340099018,1728526846697,-799.8886164,0.000109,2]
[340099019,1728526846719,-200.1113836,0.000109,2]
[340099020,1728526847598,-21.3120164,0.000109,2]
[340099021,1728526847618,-978.6879836,0.000109,2]
[340099022,1728526849063,-21.3120164,0.000109,2]
[340099023,1728526849082,-978.6879836,0.000109,2]
[340099024,1728526850366,-316.1924164,0.000109,2]
[340099025,1728526850389,-683.8075836,0.000109,2]
[340099026,1728526852008,-1000.0,0.000109,2]
[340099027,1728526853435,-1000.0,0.000109,2]
[340099028,1728526890935,162.3936,0.00010139,2]
[340099029,1728527099020,-1000.0,0.00010872,2]
[340099030,1728527100339,-1000.0,0.00010872,2]
[340099031,1728527101379,-127.66,0.00010872,2]
[340099032,1728527101399,-150.0,0.00010899,2]
[340099033,1728527101418,-722.34,0.000109,2]
[340099034,1728527106257,-300.0,0.00010899,2]
[340099035,1728527106281,-150.0,0.000109,2]
[340099036,1728527237242,-4139.59898568,0.000109,2]
[340099056,1728527358316,380.69,8.969e-05,2]
[340099072,1728527431565,-158.08,0.00010824,2]
[340099073,1728527431576,-104.62659263,0.00010899,2]
[340099074,1728527431587,-195.37340737,0.00010899,2]
[340099075,1728527431596,-159.91093072,0.000109,2]
[340099076,1728527431605,-171.5136259,0.000109,2]
[340099077,1728527431614,-1668.93211623,0.000109,2]
[340099078,1728527431625,-5831.06788377,0.000109,2]
[340099079,1728527431634,-205.90804254,0.000109,2]
[340099080,1728527431643,-180.94161762,0.000109,2]
[340099081,1728527431651,-1485.21791133,0.000109,2]
[340099082,1728527431662,-57.78208867,0.000109,2]
[340099083,1728527431671,-1271.50193906,0.000109,2]
[340099084,1728527431682,-359.27021298,0.000109,2]
[340099085,1728527431691,-693.504,0.000109,2]
[340099086,1728527431700,-387.66464165,0.000109,2]
[340099087,1728527431712,-1461.92768731,0.000109,2]
[340099088,1728527431721,-1643.69233668,0.000109,2]
[340099089,1728527431732,-387.17470319,0.000109,2]
[340099090,1728527431743,-287.14466568,0.000109,2]
[340099091,1728527431753,-250.0,0.00010905,2]
[340099092,1728527431763,-157.83,0.00010959,2]
[340099093,1728527431773,-194.48,0.00010959,2]
[340099094,1728527431782,-152.64,0.00010959,2]
[340099095,1728527431791,-370.85,0.00010959,2]
[340099096,1728527431800,-309.05,0.00010959,2]
[340099097,1728527431810,-257.54,0.00010959,2]
[340099098,1728527431819,-214.61,0.00010959,2]
[340099099,1728527431833,-178.85,0.00010959,2]
[340099100,1728527431842,-83.70533432,0.00010973,2]
[340099101,1728527431854,-75.64859954,0.00010973,2]
[340099102,1728527431864,-161.74909653,0.00010973,2]
[340099103,1728527431873,-199.74670045,0.00010973,2]
[340099104,1728527431887,-300.25329955,0.00010973,2]
[340099105,1728527431895,-510.72156263,0.00010973,2]
[340099106,1728527431905,-504.45880968,0.00010973,2]
[340099107,1728527431915,-2530.36420067,0.00010998,2]
[340099108,1728527431924,-1001.58275024,0.00010999,2]
[340099109,1728527431934,-156.496,0.00010999,2]
[340099110,1728527431944,-500.0,0.00010999,2]
[340099111,1728527431957,-205.16481735,0.00010999,2]
[340099112,1728527431966,-681.0,0.00011,2]
[340099113,1728527431976,-758.7081932,0.00011,2]
[340099114,1728527431987,-420.98804803,0.00011,2]
[340099115,1728527432020,-1396.35356278,0.00011,2]
[340099121,1728527438117,-244.7852747,0.000109,2]
[340099122,1728527438126,-894.25,0.00010959,2]
[340099123,1728527438135,-624.0,0.00011,2]
[340099124,1728527438144,-63620.0387253,0.00011,2]
[340099136,1728527439738,-540.67576459,0.00011,2]
[340099137,1728527439749,-367.36455014,0.00011,2]
[340099138,1728527439761,-1086.34670665,0.00011,2]
[340099139,1728527439862,-710.86,0.00011,2]
[340099158,1728527440238,-262.10490875,0.00011,2]
[340099159,1728527442567,-330.5,0.00011,2]
[340099163,1728527442861,-224.5,0.00011,2]
[340099164,1728527442871,-363932.70507977,0.00011,2]
[340099165,1728527442882,-361.01292754,0.00011,2]
[340099166,1728527442981,-426.29565446,0.00011,2]
[340099167,1728527442992,-14809.65216665,0.00011,2]
[340099168,1728527443003,-10797.29872224,0.00011,2]
[340099169,1728527443014,-8683.20710572,0.00011,2]
[340099173,1728527445542,-252646.27931933,0.00011,2]
[340099174,1728527445663,-658.07952203,0.00011,2]
[340099175,1728527893655,391.57,9.073e-05,2]
[340099176,1728528410378,371.99,9.241e-05,2]
[340099177,1728528427133,-413.95989856,0.00010744,2]
[340099184,1728528631904,-939.33967685,0.00010745,2]
[340099186,1728528631915,-1106.78264825,0.00010745,2]
[340099187,1728528631927,-966.43463374,0.00010745,2]
[340099188,1728528631940,-618.03494291,0.00010745,2]
[340099189,1728528631951,-13.34669625,0.00010745,2]
[340099190,1728528631960,-911.73054432,0.000108,2]
[340099191,1728528631971,-1099.11935744,0.000108,2]
[340099192,1728528631982,-108.03689824,0.000108,2]
[340099193,1728528631992,-250.0,0.00010882,2]
[340099194,1728528632002,-150.0,0.00010899,2]
[340099195,1728528632013,-234.44013136,0.000109,2]
[340099196,1728528632023,-1316.83678172,0.000109,2]
[340099197,1728528632034,-912.38802639,0.000109,2]
[340099198,1728528632152,-508.47198714,0.000109,2]
[340099201,1728528632163,-353.69597339,0.000109,2]
[340099203,1728528632173,-171.51362588,0.000109,2]
[340099204,1728528632182,-173.94279504,0.000109,2]
[340099205,1728528632192,-160.44,0.00010959,2]
[340099206,1728528632201,-152.95,0.00010959,2]
[340099207,1728528632210,-1000.0,0.00010968,2]
[340099208,1728528632220,-305.50856967,0.00010973,2]
[340099209,1728528632229,-502.0,0.00011,2]
[340099210,1728528632238,-172.05,0.00011,2]
[340099211,1728528632248,-298993.24037546,0.00011,2]
[340099212,1728528632426,-341.42630098,0.00011,2]
[340099213,1728528632438,-11428.11880153,0.00011,2]
[340099214,1728528632450,-704.86,0.00011,2]
[340099215,1728528632460,-590.16069176,0.00011,2]
[340099216,1728528632472,-530.14499983,0.00011,2]
[340099217,1728528632483,-1398.1999995,0.00011,2]
[340099218,1728528632499,-798.80351269,0.00011,2]
[340099220,1728528638171,-179.89968722,0.000109,2]
[340099221,1728528638181,-11532.95007768,0.00011,2]
[340099222,1728528638193,-3004.73118002,0.00011,2]
[340099268,1728528639831,-701.97138762,0.00011,2]
[340099269,1728528639846,-1218.10633322,0.00011,2]
[340099270,1728528640034,-250.72530513,0.00011,2]
[340099273,1728528640046,-3602.21195516,0.00011,2]
[340099275,1728528640057,-486.06072121,0.00011,2]
[340099277,1728528640069,-4957.06848104,0.00011,2]
[340099317,1728528642732,-1934.53105243,0.00011,2]
[340099323,1728528642912,-363932.70507977,0.00011,2]
[340099324,1728528643099,-445.41059929,0.00011,2]
[340099325,1728528643111,-859.18133525,0.00011,2]
[340099335,1728528645994,-29458.265973,0.00011,2]
[340099336,1728529007581,415.81,9.078e-05,2]
[340099337,1728529554732,425.94,8.736e-05,2]
[340099339,1728529625112,-250.0,0.00010616,2]
[340099340,1728529625132,-188.7012,0.00010645,2]
[340099341,1728529625155,-305.7723,0.00010782,2]
[340099342,1728529625347,-1000.0,0.00010866,2]
[340099343,1728529625368,-1037.79416293,0.0001089,2]
[340099363,1728529831940,-1287.69124,0.00010727,2]
[340099365,1728529831950,-151.30435,0.00010781,2]
[340099366,1728529831959,-962.5376,0.0001089,2]
[340099367,1728529831975,-1276.63023755,0.00010899,2]
[340099368,1728529831985,-110.38190774,0.00010899,2]
[340099369,1728529831996,-1166.24832972,0.00010899,2]
[340099370,1728529832005,-1276.63023746,0.00010899,2]
[340099371,1728529832015,-1276.63023746,0.00010899,2]
[340099372,1728529832024,-1061.51387672,0.00010899,2]
[340099373,1728529832036,-215.11636074,0.00010899,2]
[340099374,1728529832045,-150.0,0.00010899,2]
[340099375,1728529832058,-70.83651273,0.00010899,2]
[340099384,1728529837997,-646.8411,0.00010295,2]
[340099385,1728529838420,-1080.9589,0.00010295,2]
[340099386,1728529838430,-1205.79372473,0.00010899,2]
[340099387,1728529838439,-1276.63023746,0.00010899,2]
[340099388,1728529838448,-1276.63023746,0.000109,2]
[340099389,1728529838457,-1276.63023746,0.000109,2]
[340099390,1728529838467,-9324.1889,0.000109,2]
[340099391,1728529838476,-13711.3566,0.000109,2]
[340099392,1728529838485,-11674.71560683,0.000109,2]
[340099418,1728529843079,-232.28659317,0.000109,2]
[340099419,1728529843091,-6456.6106,0.000109,2]
[340099420,1728529843100,-1276.63023746,0.000109,2]
[340099421,1728529843109,-154.0,0.00010959,2]
[340099422,1728529843119,-500.0,0.00010973,2]
[340099423,1728529843129,-500.0,0.00010973,2]
[340099424,1728529843138,-192.673,0.00010973,2]
[340099425,1728529843147,-1185.204,0.00010989,2]
[340099426,1728529843156,-1149.0,0.00010989,2]
[340099427,1728529843165,-9547.65487357,0.00010989,2]
[340099428,1728529843261,-3973.34512643,0.00010989,2]
[340099429,1728529843270,-150.0,0.00010989,2]
[340099430,1728529843280,-1083.0,0.00010989,2]
[340099431,1728529843289,-109877.19166006,0.0001099,2]
[340099432,1728529843301,-1887.0731602,0.00010998,2]
[340099433,1728529843311,-532.0,0.00011,2]
[340099434,1728529843321,-425.94,0.00011,2]
[340099435,1728529843331,-246004.15513308,0.00011,2]
[340099438,1728529845946,-360.24014673,0.00011,2]
[340099439,1728529845958,-1280.81103182,0.00011,2]
[340099440,1728529845970,-753.68927655,0.00011,2]
[340099441,1728530069259,404.64,8.628e-05,2]
[340099442,1728530634719,415.11,8.782e-05,2]
[340099443,1728530844125,-1000.0,0.00010541,2]
[340099444,1728530844146,-250.0,0.00010656,2]
[340099445,1728530844166,-196.34,0.00010709,2]
[340099446,1728530844186,-2557.5376347,0.00010899,2]
[340099461,1728530974724,150.32,8.728e-05,2]
[340099493,1728531032086,-150.0,0.00010899,2]
[340099495,1728531032096,-8240.111819,0.000109,2]
[340099497,1728531032105,-161.28046835,0.000109,2]
[340099499,1728531032118,-171.53336318,0.000109,2]
[340099501,1728531032126,-4139.5989,0.000109,2]
[340099502,1728531032135,-6371.18699139,0.000109,2]
[340099503,1728531032144,-160.52,0.00010959,2]
[340099505,1728531032155,-152.74,0.00010959,2]
[340099507,1728531032163,-160.44,0.00010959,2]
[340099509,1728531032172,-849.08,0.00010959,2]
[340099510,1728531032180,-514.79025584,0.00010973,2]
[340099512,1728531032191,-1396.28615684,0.00010998,2]
[340099515,1728531032203,-490.78700336,0.00010998,2]
[340099517,1728531032212,-2608.14870265,0.00010999,2]
[340099518,1728531032220,-538.0,0.00011,2]
[340099520,1728531032230,-4695.37093725,0.00011,2]
[340099523,1728531032241,-4831.29553104,0.00011,2]
[340099525,1728531032254,-2534.578025,0.00011,2]
[340099548,1728531032266,-377.86782155,0.00011,2]
[340099551,1728531032442,-99542.35781854,0.00011,2]
[340099553,1728531032455,-683.64,0.00011,2]
[340099555,1728531032466,-463.05,0.00011,2]
[340099581,1728531038346,-32539.99937189,0.00011,2]
[340099582,1728531038358,-283.6234746,0.00011,2]
[340099583,1728531040079,-3422.99865,0.00011,2]
[340099584,1728531040211,-713.18165064,0.00011,2]
[340099585,1728531040535,-5184.20181618,0.00011,2]
[340099586,1728531040547,-326.71691242,0.00011,2]
[340099589,1728531043265,-1545.0,0.00011,2]
[340099590,1728531043277,-248849.16829328,0.00011,2]
[340099591,1728531043381,-1602.74999996,0.00011,2]
[340099592,1728531043392,-950.9093924,0.00011,2]
[340099599,1728531046188,-1229.9991,0.00011,2]
[340099600,1728531046199,-6337.5123322,0.00011,2]
[340099601,1728531172829,424.79,9.331e-05,2]
[340099602,1728531481939,150.07,8.739e-05,2]
[340099603,1728531893038,463.85,8.979e-05,2]
[340099604,1728532054142,-772.96859278,0.00010857,2]
[340099632,1728532232121,-413.959898,0.00010789,2]
[340099633,1728532232131,-25.01992547,0.00010843,2]
[340099634,1728532232236,-224.98007453,0.00010843,2]
[340099635,1728532232246,-227.03140722,0.00010857,2]
[340099636,1728532232256,-121.04466273,0.00010899,2]
[340099637,1728532232352,-28.95533727,0.00010899,2]
[340099638,1728532232363,-50709.97293368,0.000109,2]
[340099639,1728532232375,-2110.36633557,0.000109,2]
[340099640,1728532232406,-2042.49653615,0.000109,2]
[340099641,1728532232436,-3301.82961264,0.000109,2]
[340099643,1728532238353,-1185.34288774,0.000109,2]
[340099644,1728532238364,-2082.44359574,0.000109,2]
[340099645,1728532238432,-250.0,0.000109,2]
[340099646,1728532238516,-11801.30784444,0.000109,2]
[340099647,1728532238528,-1019.55546069,0.000109,2]
[340099648,1728532238539,-307.25000024,0.000109,2]
[340099650,1728532240324,-589.97069311,0.000109,2]
[340099651,1728532240334,-161.28046835,0.000109,2]
[340099652,1728532240344,-1903.05254972,0.000109,2]
[340099653,1728532240356,-1551.61611367,0.000109,2]
[340099654,1728532240365,-152.95,0.00010959,2]
[340099655,1728532240375,-154.0,0.00010959,2]
[340099656,1728532240384,-154.139,0.00010959,2]
[340099657,1728532240393,-477.53684236,0.00010973,2]
[340099670,1728532243154,-22.46315764,0.00010973,2]